bitfinex/quotes_SOLUSD_20241111
["timestamp","ask_amount","ask_price","bid_price","bid_amount"]
[1731337051294,16.43670561,218.4,218.32,16.0314]
[1731337051295,21.01560561,218.4,218.32,16.0314]
[1731337051476,21.01560561,218.4,218.33,16.43670561]
[1731337052192,21.01560561,218.4,218.32,16.0314]
[1731337052496,21.01510561,218.42,218.33,32.46720561]
[1731337052884,16.43670561,218.4,218.33,32.46720561]
[1731337053084,21.01510561,218.42,218.33,32.46720561]
[1731337053274,4.5784,218.42,218.35,16.43670561]
[1731337053476,21.01510561,218.42,218.33,32.46720561]
[1731337053683,16.43670561,218.4,218.33,11.4505]
[1731337053885,16.43670561,218.36,218.29,16.0335]
[1731337054580,16.43670561,218.34,218.29,11.4525]
[1731337054889,16.43670561,218.32,218.25,11.4545]
[1731337055087,16.43670561,218.3,218.22,4.5823]
[1731337055295,16.43670561,218.3,218.23,16.43670561]
[1731337055497,16.43670561,218.32,218.25,16.43670561]
[1731337055707,16.43670561,218.3,218.22,16.0386]
[1731337056006,16.43670561,218.32,218.23,16.43670561]
[1731337056696,4.5806,218.31,218.23,32.47470561]
[1731337056891,16.43670561,218.32,218.23,32.47470561]
[1731337057097,16.43670561,218.36,218.29,16.43670561]
[1731337057400,4.5789,218.39,218.31,16.43670561]
[1731337058587,16.43670561,218.38,218.3,4.5808]
[1731337059391,4.5789,218.39,218.31,16.43670561]
[1731337059587,16.43670561,218.38,218.3,16.0329]
[1731337060804,21.01560561,218.4,218.31,16.43670561]
[1731337061303,4.5789,218.4,218.35,16.43670561]
[1731337061506,4.5789,218.4,218.33,16.43670561]
[1731337061808,4.5789,218.4,218.33,21.01680561]
[1731337062186,21.01560561,218.4,218.31,21.01710561]
[1731337062600,16.43670561,218.38,218.3,16.0329]
[1731337062978,21.01560561,218.4,218.31,16.43670561]
[1731337063896,11.4444,218.45,218.31,16.43670561]
[1731337063897,16.43670561,218.44,218.35,16.43670561]
[1731337064113,16.43670561,218.52,218.41,16.43670561]
[1731337064114,4.577,218.48,218.41,16.43670561]
[1731337064413,21.01370561,218.48,218.41,16.43670561]
[1731337064789,11.4411,218.51,218.45,16.43670561]
[1731337064790,4.5764,218.51,218.45,16.43670561]
[1731337065004,4.5762,218.53,218.45,16.43670561]
[1731337065188,4.5762,218.53,218.39,0.1]
[1731337065189,21.01290561,218.53,218.43,16.43670561]
[1731337066088,16.43670561,218.51,218.43,16.43670561]
[1731337066785,16.43670561,218.51,218.43,21.01470561]
[1731337067003,21.01240561,218.55,218.45,16.43670561]
[1731337067206,21.01240561,218.55,218.43,16.0233]
[1731337067207,21.01240561,218.55,218.47,16.43670561]
[1731337067795,16.43670561,218.57,218.49,16.43670561]
[1731337068099,16.43670561,218.63,218.53,16.43670561]
[1731337068295,16.43670561,218.61,218.51,16.43670561]
[1731337068501,16.43670561,218.57,218.49,16.43670561]
[1731337068903,26.30387491,218.57,218.48,26.30387491]
[1731337069404,30.87917491,218.57,218.49,4.5768]
[1731337069809,30.87917491,218.57,218.48,26.30387491]
[1731337069989,30.87917491,218.57,218.5,26.30387491]
[1731337070189,26.30387491,218.59,218.5,26.30387491]
[1731337071109,30.87777491,218.63,218.54,26.30387491]
[1731337071494,30.87777491,218.63,218.54,30.87947491]
[1731337071796,30.87777491,218.63,218.54,42.31897491]
[1731337072110,26.30387491,218.65,218.56,26.30387491]
[1731337073304,26.30387491,218.63,218.56,26.30387491]
[1731337073615,26.30387491,218.65,218.56,30.87917491]
[1731337075110,30.87777491,218.63,218.56,30.87917491]
[1731337075634,30.87777491,218.63,218.56,15.82769543]
[1731337076792,30.87777491,218.63,218.54,42.31907491]
[1731337077011,26.30387491,218.61,218.52,26.30387491]
[1731337077310,26.30387491,218.57,218.5,37.74537491]
[1731337077504,26.30387491,218.57,218.5,11.4415]
[1731337078408,30.87917491,218.57,218.5,11.4415]
[1731337078917,4.5753,218.57,218.48,26.30387491]
[1731337079124,26.30387491,218.56,218.48,30.88077491]
[1731337079816,26.30387491,218.56,218.48,26.30387491]
[1731337080019,4.5753,218.57,218.45,11.444]
[1731337080020,26.30387491,218.52,218.45,11.444]
[1731337080201,26.30387491,218.5,218.42,26.30387491]
[1731337080399,4.5768,218.49,218.42,26.30387491]
[1731337080714,26.30387491,218.48,218.4,18.007]
[1731337081018,26.30387491,218.5,218.42,26.30387491]
[1731337081217,26.30387491,218.54,218.46,26.30387491]
[1731337081610,26.30387491,218.52,218.44,26.30387491]
[1731337082327,26.30387491,218.56,218.48,26.30387491]
[1731337082499,26.30387491,218.52,218.44,42.32627491]
[1731337083322,26.30387491,218.54,218.46,26.30387491]
[1731337083507,26.30387491,218.56,218.48,26.30387491]
[1731337083713,26.30387491,218.6,218.5,26.30387491]
[1731337083926,26.30387491,218.6,218.52,26.30387491]
[1731337085123,26.30387491,218.58,218.5,26.30387491]
[1731337085502,30.87857491,218.6,218.52,30.87997491]
[1731337085915,4.5747,218.6,218.54,26.30387491]
[1731337086119,30.87767491,218.64,218.56,26.30387491]
[1731337087125,26.30387491,218.66,218.58,26.30387491]
[1731337087311,26.30387491,218.66,218.54,18.302645]
[1731337087615,4.5726,218.69,218.56,26.30387491]
[1731337088018,26.30387491,218.64,218.56,26.30387491]
[1731337088204,26.30387491,218.64,218.57,4.5751]
[1731337088601,30.87757491,218.64,218.57,16.013]
[1731337089001,26.30387491,218.64,218.57,16.013]
[1731337090224,26.30387491,218.68,218.6,26.30387491]
[1731337091307,26.30387491,218.74,218.66,26.30387491]
[1731337091708,26.30387491,218.72,218.64,26.30387491]
[1731337092617,30.87587491,218.72,218.65,4.5735]
[1731337092821,26.30387491,218.67,218.55,4.5756]
[1731337093007,26.30387491,218.63,218.55,30.87947491]
[1731337093215,26.30387491,218.71,218.61,26.30387491]
[1731337093429,26.30387491,218.73,218.65,26.30387491]
[1731337093809,26.30387491,218.73,218.65,32.35657491]
[1731337094505,26.30387491,218.77,218.69,26.30387491]
[1731337094931,26.30387491,218.77,218.67,46.30387491]
[1731337095108,26.30387491,218.77,218.69,26.30387491]
[1731337095507,26.30387491,218.75,218.67,26.30387491]
[1731337096629,4.5713,218.76,218.69,26.30387491]
[1731337097019,30.87487491,218.77,218.69,26.30387491]
[1731337097229,4.571,218.77,218.69,26.30387491]
[1731337097420,26.30387491,218.76,218.69,26.30387491]
[1731337097618,26.30387491,218.76,218.67,42.30957491]
[1731337097927,26.30387491,218.76,218.67,42.30967491]
[1731337098231,26.30387491,218.76,218.67,37.73657491]
[1731337098728,30.87507491,218.76,218.67,42.30967491]
[1731337098908,4.5712,218.76,218.67,16.0058]
[1731337099227,4.5709,218.78,218.69,16.40990595]
[1731337100240,16.4753,218.88,218.75,16.40990595]
[1731337100531,16.40990595,218.84,218.76,16.40990595]
[1731337100832,16.40990595,218.84,218.76,20.98100595]
[1731337101029,16.40990595,218.84,218.76,16.40990595]
[1731337101934,16.40990595,218.8,218.7,36.40990595]
[1731337102145,16.40990595,218.78,218.7,32.41340595]
[1731337102433,16.40990595,218.76,218.67,16.40990595]
[1731337102614,4.5714,218.75,218.67,16.40990595]
[1731337103028,4.5714,218.75,218.67,32.41550595]
[1731337103220,20.98070595,218.78,218.69,16.40990595]
[1731337103421,16.40990595,218.76,218.67,32.41550595]
[1731337103838,16.40990595,218.76,218.67,27.84260595]
[1731337104135,16.40990595,218.7,218.61,20.98410595]
[1731337104322,16.40990595,218.72,218.63,16.40990595]
[1731337104526,16.40990595,218.74,218.65,16.40990595]
[1731337104812,4.5715,218.75,218.68,26.25695598]
[1731337106121,26.25695598,218.74,218.65,11.4337]
[1731337106813,26.25695598,218.7,218.62,26.25695598]
[1731337107015,26.25695598,218.68,218.61,16.01]
[1731337107940,26.25695598,218.7,218.62,26.25695598]
[1731337108339,26.25695598,218.72,218.64,26.25695598]
[1731337108632,26.25695598,218.72,218.61,16.01]
[1731337108633,26.25695598,218.7,218.62,20.0]
[1731337109018,26.25695598,218.7,218.63,26.25695598]
[1731337109220,0.1,218.8,218.62,20.0]
[1731337109221,26.25695598,218.76,218.67,26.25695598]
[1731337109635,26.25695598,218.74,218.65,26.25695598]
[1731337109939,26.25695598,218.72,218.66,24.5731]
[1731337110239,26.25695598,218.72,218.66,36.0063]
[1731337110435,26.25695598,218.74,218.66,36.0063]
[1731337110640,26.25695598,218.72,218.66,16.0065]
[1731337111219,26.25695598,218.72,218.66,11.4332]
[1731337111436,26.25695598,218.72,218.63,26.25695598]
[1731337111437,26.25695598,218.7,218.64,20.0]
[1731337112033,26.25695598,218.72,218.65,20.0]
[1731337112338,30.82895598,218.72,218.65,20.0]
[1731337113620,26.25695598,218.68,218.6,26.25695598]
[1731337113823,26.25695598,218.71,218.62,26.25695598]
[1731337114060,4.5703,218.8,218.66,26.25695598]
[1731337114345,26.25695598,218.75,218.66,26.25695598]
[1731337114842,26.25695598,218.73,218.65,20.0]
[1731337115022,26.25695598,218.75,218.66,26.25695598]
[1731337115638,26.25695598,218.75,218.67,16.0058]
[1731337115842,30.82835598,218.75,218.67,16.0058]
[1731337116028,26.25695598,218.75,218.67,16.0058]
[1731337117315,30.82835598,218.75,218.67,16.0058]
[1731337118737,11.4259,218.8,218.67,16.0058]
[1731337118738,26.25695598,218.73,218.67,16.0058]
[1731337118925,26.25695598,218.71,218.6,50.83145598]
[1731337119121,26.25695598,218.73,218.64,26.25695598]
[1731337119827,26.25695598,218.71,218.62,26.25695598]
[1731337120047,26.25695598,218.67,218.59,6.4677]
[1731337120243,26.25695598,218.67,218.59,11.0424]
[1731337120843,4.5733,218.66,218.59,11.0424]
[1731337121247,26.25695598,218.69,218.6,26.25695598]
[1731337122525,26.25695598,218.78,218.68,26.25695598]
[1731337123020,30.82775598,218.78,218.69,4.5726]
[1731337123224,30.82775598,218.78,218.69,16.0043]
[1731337123537,26.25695598,218.76,218.69,16.0043]
[1731337123928,26.25695598,218.76,218.66,26.25695598]
[1731337124157,26.25695598,218.74,218.64,42.26425598]
[1731337124440,26.25695598,218.72,218.64,42.26425598]
[1731337124828,30.82915598,218.72,218.64,42.26425598]
[1731337125027,30.82915598,218.72,218.64,42.26445598]
[1731337126231,26.25695598,218.74,218.66,26.25695598]
[1731337126554,26.25695598,218.74,218.64,42.26445598]
[1731337126723,11.427,218.78,218.64,16.0075]
[1731337126928,16.41493935,218.73,218.64,32.42243935]
[1731337127633,16.41493935,218.75,218.66,16.41493935]
[1731337128547,16.41493935,218.79,218.7,16.41493935]
[1731337128848,6.4242,218.83,218.64,27.94873935]
[1731337128849,4.5697,218.84,218.76,16.41493935]
[1731337129053,4.5692,218.86,218.78,16.41493935]
[1731337129525,16.41493935,218.87,218.79,4.5705]
[1731337129732,20.98383935,218.87,218.8,16.41493935]
[1731337129944,16.41493935,218.89,218.8,16.41493935]
[1731337130853,16.41493935,218.91,218.82,16.41493935]
[1731337131046,16.41493935,218.93,218.86,16.41493935]
[1731337131848,16.41493935,218.89,218.77,20.0]
[1731337132060,16.41493935,218.89,218.8,16.41493935]
[1731337132349,16.41493935,218.91,218.82,16.41493935]
[1731337132923,26.22012862,218.91,218.83,26.22012862]
[1731337133227,30.78822862,218.91,218.83,30.78972862]
[1731337134243,26.22012862,218.93,218.85,26.22012862]
[1731337134656,26.22012862,218.91,218.83,42.21402862]
[1731337136059,30.78822862,218.91,218.83,42.21402862]
[1731337136352,26.22012862,218.89,218.83,11.4243]
[1731337136732,26.22012862,218.89,218.8,4.5702]
[1731337137051,26.22012862,218.85,218.8,4.5702]
[1731337137254,4.5681,218.91,218.8,4.5702]
[1731337137255,26.22012862,218.87,218.8,4.5702]
[1731337137745,26.22012862,218.87,218.78,11.4265]
[1731337138048,30.78912862,218.87,218.78,15.9973]
[1731337138255,26.22012862,218.87,218.78,15.9973]
[1731337138435,26.22012862,218.87,218.79,26.22012862]
[1731337138632,30.78882862,218.88,218.78,42.21742862]
[1731337138835,30.78882862,218.88,218.8,26.22012862]
[1731337139138,30.78882862,218.88,218.78,42.21742862]
[1731337139551,26.22012862,218.86,218.78,42.21742862]
[1731337139860,4.5693,218.85,218.78,15.9973]
[1731337140149,26.22012862,218.86,218.78,42.21742862]
[1731337140338,26.22012862,218.88,218.78,42.21742862]
[1731337140655,26.22012862,218.88,218.79,20.0]
[1731337140843,23.776884,218.91,218.84,26.22012862]
[1731337141347,26.22012862,218.92,218.84,26.22012862]
[1731337141740,4.5685,218.89,218.82,26.22012862]
[1731337141940,4.5685,218.89,218.83,6.4941]
[1731337142263,30.78802862,218.92,218.84,26.22012862]
[1731337142553,26.22012862,218.9,218.83,6.4941]
[1731337142727,23.776884,218.87,218.8,26.22012862]
[1731337142928,23.776884,218.87,218.78,32.75822862]
[1731337143131,23.776884,218.92,218.86,26.22012862]
[1731337143342,23.776884,218.9,218.82,26.22012862]
[1731337143554,26.22012862,218.85,218.78,6.5381]
[1731337143862,23.776884,218.9,218.78,6.5381]
[1731337144048,26.22012862,218.89,218.81,26.22012862]
[1731337144553,26.22012862,218.87,218.79,26.22012862]
[1731337144755,23.776884,218.9,218.83,26.22012862]
[1731337144957,23.776884,218.9,218.81,26.22012862]
[1731337144958,26.22012862,218.89,218.81,26.22012862]
[1731337145843,26.22012862,218.89,218.82,4.5699]
[1731337146358,23.776884,218.88,218.79,26.22012862]
[1731337146542,23.776884,218.86,218.78,17.9651]
[1731337146738,26.22012862,218.91,218.83,26.22012862]
[1731337146939,26.22012862,218.93,218.85,26.22012862]
[1731337147248,23.776884,218.92,218.85,26.22012862]
[1731337147732,23.776884,218.92,218.83,26.22012862]
[1731337147933,23.776884,218.9,218.83,26.22012862]
[1731337148139,14.6754059,218.91,218.83,26.22012862]
[1731337148345,14.6754059,218.91,218.82,11.4246]
[1731337148654,26.22012862,218.89,218.82,11.4246]
[1731337148954,26.22012862,218.93,218.85,26.22012862]
[1731337149360,26.22012862,218.91,218.83,26.22012862]
[1731337149752,26.22012862,218.91,218.82,11.4246]
[1731337149946,4.5682,218.9,218.83,26.22012862]
[1731337151149,26.22012862,218.91,218.84,20.0]
[1731337151356,4.568,218.92,218.85,26.22012862]
[1731337151555,8.98977887,218.91,218.85,26.22012862]
[1731337151857,4.5677,218.93,218.87,26.22012862]
[1731337152042,26.22012862,218.95,218.87,26.22012862]
[1731337152241,26.22012862,218.93,218.85,26.22012862]
[1731337152860,26.22012862,218.94,218.87,26.22012862]
[1731337153042,4.5676,218.93,218.86,4.5691]
[1731337153243,4.5669,218.97,218.89,26.22012862]
[1731337153444,4.5669,218.97,218.92,16.37463276]
[1731337153640,16.37463276,219.0,218.92,16.37463276]
[1731337153841,16.37463276,219.02,218.94,16.37463276]
[1731337154041,16.37463276,219.02,218.92,20.0]
[1731337154253,16.37463276,219.0,218.92,16.37463276]
[1731337154646,16.37463276,219.02,218.94,16.37463276]
[1731337155356,4.566,219.01,218.92,32.36203276]
[1731337155555,4.566,219.01,218.94,16.37463276]
[1731337155948,16.37463276,219.0,218.92,32.36203276]
[1731337157445,16.37463276,218.94,218.88,11.4217]
[1731337157763,16.37463276,218.94,218.86,6.1522]
[1731337157960,16.37463276,218.94,218.86,38.51863276]
[1731337158196,16.37463276,218.92,218.86,11.4228]
[1731337158463,16.37463276,218.9,218.86,11.4228]
[1731337158640,16.37463276,218.9,218.82,16.37463276]
[1731337158641,16.37463276,218.9,218.82,20.94433276]
[1731337159049,16.37463276,218.9,218.82,32.36943276]
[1731337159245,16.37463276,218.9,218.82,27.79953276]
[1731337159559,4.5685,218.89,218.8,20.94493276]
[1731337160047,16.37463276,218.88,218.8,20.94493276]
[1731337160366,16.37463276,218.88,218.8,32.37083276]
[1731337160744,16.37463276,218.9,218.82,16.37463276]
[1731337161864,4.5685,218.89,218.82,16.37463276]
[1731337162272,16.37463276,218.9,218.82,20.94453276]
[1731337162569,16.37463276,218.92,218.84,16.37463276]
[1731337163959,4.568,218.91,218.84,20.94393276]
[1731337164759,16.37463276,218.9,218.82,16.37463276]
[1731337165352,4.5676,218.94,218.86,16.37463276]
[1731337165695,16.37463276,218.96,218.88,16.37463276]
[1731337165966,27.783,219.01,218.9,16.37463276]
[1731337165967,16.37463276,218.98,218.9,16.37463276]
[1731337166171,20.94083276,219.0,218.92,16.37463276]
[1731337166373,16.37463276,218.98,218.9,16.37463276]
[1731337167368,4.5662,219.0,218.9,20.94283276]
[1731337167560,16.37463276,218.97,218.9,4.5682]
[1731337167755,16.37463276,218.97,218.89,6.054]
[1731337167977,4.5662,219.0,218.89,6.054]
[1731337168186,16.37463276,218.96,218.89,6.054]
[1731337169162,16.37463276,218.96,218.8,45.7038]
[1731337169163,16.37463276,218.94,218.86,16.37463276]
[1731337170174,4.5676,218.93,218.86,16.37463276]
[1731337170356,4.5676,218.93,218.86,20.94363276]
[1731337170965,20.94163276,218.96,218.88,16.37463276]
[1731337171174,4.567,218.96,218.9,16.37463276]
[1731337171494,4.567,218.96,218.88,16.37463276]
[1731337171696,20.94163276,218.96,218.88,16.37463276]
[1731337172159,16.37463276,218.9,218.83,6.1095]
[1731337172361,16.37463276,218.94,218.86,16.37463276]
[1731337173575,20.94213276,218.94,218.87,4.5689]
[1731337173975,20.94213276,218.94,218.84,16.37463276]
[1731337174179,20.94213276,218.94,218.86,16.37463276]
[1731337175168,20.94213276,218.94,218.86,20.94373276]
[1731337175367,16.37463276,218.97,218.88,16.37463276]
[1731337175564,4.5671,218.96,218.9,16.37463276]
[1731337175768,4.5671,218.96,218.88,16.37463276]
[1731337176576,4.5671,218.96,218.9,16.37463276]
[1731337176770,16.37463276,218.99,218.9,16.37463276]
[1731337177883,16.37463276,218.99,218.89,15.9897]
[1731337177884,4.5662,219.0,218.92,16.37463276]
[1731337178084,4.5662,219.0,218.89,15.9897]
[1731337178085,16.37463276,219.01,218.94,16.37463276]
[1731337178284,16.37463276,219.03,218.94,16.37463276]
[1731337178588,16.37463276,219.05,218.96,16.37463276]
[1731337179561,16.37463276,219.03,218.94,22.76493276]
[1731337179886,16.37463276,219.03,218.94,27.33223276]
[1731337180373,16.37463276,219.03,218.94,22.76493276]
[1731337180573,16.37463276,218.99,218.9,16.37463276]
[1731337180780,16.37463276,218.99,218.9,20.94273276]
[1731337181088,23.776884,218.98,218.88,16.37463276]
[1731337181292,16.37463276,218.95,218.88,20.94323276]
[1731337181580,16.37463276,218.94,218.87,41.5502]
[1731337182081,16.37463276,218.91,218.87,25.5595]
[1731337182288,16.37463276,218.93,218.87,25.5595]
[1731337182466,16.37463276,218.93,218.87,30.1283]
[1731337182666,16.37463276,218.95,218.87,25.5595]
[1731337182888,16.37463276,218.9,218.87,25.5595]
[1731337183473,16.37463276,218.94,218.87,30.1283]
[1731337183687,16.37463276,218.92,218.87,25.5595]
[1731337183897,16.37463276,218.9,218.87,25.5595]
[1731337184973,4.567,218.96,218.87,30.1283]
[1731337185168,16.37463276,218.95,218.87,30.1283]
[1731337185473,16.37463276,218.95,218.87,41.5506]
[1731337185776,16.37463276,218.95,218.87,57.92523276]
[1731337185987,20.94143276,218.97,218.89,16.37463276]
[1731337186169,20.94143276,218.97,218.87,57.92523276]
[1731337186367,16.37463276,218.96,218.87,57.92523276]
[1731337186792,20.94173276,218.96,218.87,57.92523276]
[1731337187283,17.7065,219.02,218.87,57.92523276]
[1731337187284,4.5661,219.01,218.91,16.37463276]
[1731337187485,16.37463276,219.0,218.91,16.37463276]
[1731337187688,16.37463276,219.0,218.93,16.37463276]
[1731337187887,16.37463276,219.0,218.91,16.37463276]
[1731337188472,16.37463276,219.0,218.93,16.37463276]
[1731337188677,4.5661,219.01,218.93,16.37463276]
[1731337188873,16.37463276,219.0,218.91,32.36243276]
[1731337189793,16.37463276,218.96,218.9,6.3584]
[1731337190086,16.37463276,218.96,218.9,10.9266]
[1731337190785,16.4614,219.04,218.9,22.3473]
[1731337190786,16.37463276,218.98,218.9,22.3473]
[1731337191366,16.37463276,218.98,218.91,16.37463276]
[1731337191784,16.37463276,218.98,218.9,22.3473]
[1731337191991,20.94123276,218.98,218.9,22.3473]
[1731337192582,16.37463276,219.0,218.91,16.37463276]
[1731337192897,16.37463276,219.0,218.91,20.94263276]
[1731337193072,16.37463276,219.02,218.95,16.37463276]
[1731337193274,16.37463276,219.0,218.91,32.36283276]
[1731337194395,16.37463276,218.98,218.91,27.79483276]
[1731337194597,16.37463276,218.98,218.91,32.36283276]
[1731337195099,16.37463276,218.98,218.91,16.37463276]
[1731337195298,16.37463276,218.98,218.9,10.9266]
[1731337195595,16.37463276,218.98,218.91,16.37463276]
[1731337196401,16.37463276,219.0,218.91,20.94253276]
[1731337196575,16.37463276,218.98,218.91,15.9881]
[1731337196775,16.37463276,219.0,218.91,32.36273276]
[1731337197277,16.37463276,218.97,218.91,15.9881]
[1731337197476,16.37463276,218.99,218.91,32.36273276]
[1731337198004,4.0663,219.0,218.91,27.79483276]
[1731337198190,16.37463276,218.99,218.91,16.37463276]
[1731337198392,16.37463276,218.99,218.91,32.36283276]
[1731337198592,4.0663,219.0,218.91,32.36283276]
[1731337198794,4.0663,219.0,218.93,16.37463276]
[1731337200111,20.94033276,219.02,218.93,16.37463276]
[1731337200292,32.83603276,219.04,218.95,16.37463276]
[1731337200488,21.0268,219.04,218.97,16.37463276]
[1731337200677,37.40143276,219.04,218.97,16.37463276]
[1731337200879,16.37463276,219.06,218.97,16.37463276]
[1731337201101,20.93973276,219.06,218.97,16.37463276]
[1731337201402,16.37463276,218.98,218.88,11.4214]
[1731337201599,16.37463276,218.95,218.86,4.5691]
[1731337201907,16.37463276,218.95,218.87,46.50303276]
[1731337202083,16.37463276,218.93,218.87,25.5595]
[1731337202284,15.4615,218.98,218.89,16.37463276]
[1731337202285,16.37463276,218.97,218.89,16.37463276]
[1731337202601,4.5668,218.97,218.91,16.37463276]
[1731337202784,20.94143276,218.97,218.89,16.37463276]
[1731337202983,16.37463276,218.93,218.87,25.5595]
[1731337203190,16.37463276,218.91,218.87,25.5595]
[1731337203492,16.37463276,218.89,218.87,25.5595]
[1731337203807,20.94143276,218.97,218.87,46.50293276]
[1731337203991,16.37463276,218.94,218.87,25.5595]
[1731337204189,4.5676,218.93,218.87,25.5595]
[1731337204497,16.37463276,218.96,218.88,16.37463276]
[1731337204700,16.37463276,218.94,218.87,25.5595]
[1731337204901,26.22352456,218.88,218.87,25.5595]
[1731337205096,26.22352456,218.9,218.87,25.5595]
[1731337205293,4.567,218.97,218.87,56.35182456]
[1731337205482,4.567,218.97,218.87,30.1283]
[1731337205681,26.22352456,218.95,218.87,25.5595]
[1731337206096,26.22352456,218.91,218.87,25.5595]
[1731337206291,26.22352456,218.95,218.88,26.22352456]
[1731337206493,26.22352456,218.97,218.88,30.79222456]
[1731337206900,26.22352456,218.97,218.9,26.22352456]
[1731337207108,15.4615,218.98,218.9,26.22352456]
[1731337207109,20.0282,218.98,218.9,26.22352456]
[1731337207287,26.22352456,218.95,218.88,42.21392456]
[1731337207487,26.22352456,218.93,218.87,25.5595]
[1731337207706,26.22352456,218.91,218.87,25.5595]
[1731337208011,26.22352456,218.89,218.87,25.5595]
[1731337208392,30.79202456,218.89,218.87,25.5595]
[1731337208716,26.22352456,218.89,218.87,25.5595]
[1731337208892,30.79202456,218.89,218.87,25.5595]
[1731337210109,4.5691,218.86,218.72,26.22352456]
[1731337210409,26.22352456,218.84,218.76,26.22352456]
[1731337210585,26.22352456,218.86,218.78,26.22352456]
[1731337210786,26.22352456,218.88,218.8,26.22352456]
[1731337210986,26.22352456,218.86,218.78,26.22352456]
[1731337211515,0.1,218.9,218.82,26.22352456]
[1731337211516,26.22352456,218.9,218.82,26.22352456]
[1731337211687,26.22352456,218.88,218.8,26.22352456]
[1731337211888,26.22352456,218.86,218.78,26.22352456]
[1731337212105,26.22352456,218.9,218.82,26.22352456]
[1731337212308,26.22352456,218.92,218.84,26.22352456]
[1731337212790,26.22352456,218.94,218.86,26.22352456]
[1731337213307,26.22352456,218.92,218.84,26.22352456]
[1731337214109,26.22352456,218.94,218.86,26.22352456]
[1731337214702,37.73902456,219.0,218.85,15.9926]
[1731337214703,26.22352456,218.92,218.85,15.9926]
[1731337214894,26.22352456,218.94,218.86,26.22352456]
[1731337215094,26.22352456,218.94,218.85,42.21612456]
[1731337216001,26.22352456,218.94,218.83,16.4995]
[1731337216002,26.22352456,218.94,218.88,15.9904]
[1731337217018,11.414,219.03,218.88,15.9904]
[1731337217019,26.22352456,219.0,218.93,26.22352456]
[1731337217192,26.22352456,219.04,218.95,26.22352456]
[1731337217393,26.22352456,219.04,218.97,26.22352456]
[1731337217709,26.22352456,219.06,218.99,26.22352456]
[1731337217892,26.22352456,219.06,218.92,16.1859]
[1731337217893,26.22352456,219.1,219.01,26.22352456]
[1731337218090,4.5618,219.21,219.07,26.22352456]
[1731337218308,26.22352456,219.16,219.07,26.22352456]
[1731337218611,26.22352456,219.18,219.11,26.22352456]
[1731337218791,26.22352456,219.16,219.08,26.22352456]
[1731337218994,26.22352456,219.18,219.1,26.22352456]
[1731337219415,0.1,219.25,219.05,21.7047]
[1731337219416,26.22352456,219.23,219.15,26.22352456]
[1731337219598,30.78502456,219.23,219.15,26.22352456]
[1731337219908,26.22352456,219.21,219.14,26.22352456]
[1731337220109,26.22352456,219.17,219.1,11.4102]
[1731337220295,26.22352456,219.11,219.04,11.4129]
[1731337220610,26.22352456,219.09,219.01,30.78942456]
[1731337220808,26.22352456,219.09,219.01,42.20442456]
[1731337221009,26.22352456,219.07,219.01,11.415]
[1731337221411,26.22352456,219.07,219.01,15.981]
[1731337221598,26.22352456,219.12,219.04,26.22352456]
[1731337222003,26.22352456,219.08,219.01,15.981]
[1731337222521,26.22352456,219.1,219.02,26.22352456]
[1731337222691,26.22352456,219.12,219.04,26.22352456]
[1731337223297,26.22352456,219.08,219.01,11.415]
[1731337223494,26.22352456,219.02,218.96,11.4174]
[1731337223698,0.1,219.11,218.92,6.1751]
[1731337223699,26.22352456,219.0,218.93,4.5675]
[1731337224017,26.22352456,219.12,218.96,26.22352456]
[1731337224018,26.22352456,219.04,218.96,26.22352456]
[1731337224310,26.22352456,219.12,218.94,26.22352456]
[1731337224311,26.22352456,219.02,218.94,26.22352456]
[1731337224510,26.22352456,219.0,218.93,4.5676]
[1731337224711,26.22352456,219.0,218.92,43.81812456]
[1731337224918,26.22352456,219.0,218.92,48.38592456]
[1731337225113,26.22352456,218.94,218.87,11.4222]
[1731337225315,26.22352456,218.9,218.82,42.04812456]
[1731337225514,26.22352456,219.0,218.82,11.4247]
[1731337225515,26.22352456,218.88,218.82,11.4247]
[1731337225816,26.22352456,218.88,218.8,10.7453]
[1731337226020,26.22352456,218.88,218.8,36.96882456]
[1731337226196,26.22352456,218.9,218.8,48.39472456]
[1731337226397,26.22352456,218.88,218.8,48.39472456]
[1731337226901,26.22352456,218.86,218.77,26.22352456]
[1731337227219,26.22352456,218.78,218.76,4.76199314]
[1731337227603,26.22352456,218.78,218.71,30.79562456]
[1731337227814,26.22352456,218.82,218.73,26.22352456]
[1731337228000,26.22352456,218.82,218.74,16.0006]
[1731337228203,26.22352456,218.86,218.77,26.22352456]
[1731337228422,26.22352456,218.82,218.74,16.0006]
[1731337228612,26.22352456,218.8,218.74,11.429]
[1731337229296,26.22352456,218.8,218.68,15.3518]
[1731337229297,26.22352456,218.78,218.69,26.22352456]